bitfinex/quotes_SOLUSD_20250805
["timestamp","ask_amount","ask_price","bid_price","bid_amount"]
[1754391671519,0.14216157,171.07,171.06,0.06]
[1754391671749,63.36465898,171.07,171.06,0.06]
[1754391671925,63.36465898,171.07,171.03,0.06]
[1754391671926,26.14216157,171.04,171.03,0.06]
[1754391672132,26.14216157,171.04,170.98,0.06]
[1754391672133,26.0,171.01,170.98,0.06]
[1754391672366,73.67844341,171.01,170.98,0.06]
[1754391672712,77.38705667,171.01,170.98,0.06]
[1754391673120,83.23466792,171.01,170.98,0.06]
[1754391673952,35.8648951,171.01,170.98,0.77]
[1754391674162,35.8648951,171.01,171.0,0.77]
[1754391674450,41.38,171.03,171.0,0.77]
[1754391674451,35.8648951,171.03,171.0,0.77]
[1754391675051,26.0,171.03,171.01,0.71]
[1754391675260,26.0,171.03,171.0,0.06]
[1754391675261,9.8648951,171.02,171.0,0.06]
[1754391675496,35.8648951,171.01,171.0,0.06]
[1754391675955,26.0,171.03,171.0,0.77]
[1754391676122,9.8648951,171.02,171.01,0.71]
[1754391677422,35.8648951,171.02,171.01,0.71]
[1754391678249,35.8648951,171.02,171.0,0.06]
[1754391678455,35.8648951,171.01,171.0,0.06]
[1754391678970,36.4648951,171.01,171.0,0.06]
[1754391679162,36.60705667,171.01,171.0,0.06]
[1754391679363,42.45466792,171.01,171.0,0.06]
[1754391679573,26.0,171.03,171.0,0.06]
[1754391679871,10.60705667,171.01,171.0,0.06]
[1754391680051,15.10621557,171.0,170.99,0.06]
[1754391680247,80.79615228,171.0,170.99,0.06]
[1754391680451,76.87600577,171.0,170.99,0.06]
[1754391681352,82.72395898,171.0,170.99,0.06]
[1754391681552,82.86612055,171.0,170.99,0.06]
[1754391682856,0.14216157,170.99,170.98,0.06]
[1754391683059,26.0,170.97,170.9,0.2]
[1754391683252,77.42705667,170.97,170.93,0.71]
[1754391683454,35.8648951,170.97,170.96,0.77]
[1754391683658,41.71387445,170.97,170.96,0.06]
[1754391684267,31.84897935,170.97,170.96,0.06]
[1754391684447,9.8648951,170.97,170.96,0.06]
[1754391685057,25.11327224,170.97,170.96,0.06]
[1754391685263,25.71327224,170.97,170.96,0.06]
[1754391685568,31.56225159,170.97,170.96,0.06]
[1754391685877,31.56225159,170.97,170.96,1e-08]
[1754391686370,26.0,170.94,170.9,0.2]
[1754391686553,35.8648951,170.91,170.9,0.2]
[1754391687276,26.0,170.91,170.9,0.91]
[1754391687460,35.8648951,170.91,170.9,0.91]
[1754391688462,26.0,170.91,170.9,0.91]
[1754391688848,15.10621557,170.98,170.9,0.91]
[1754391689058,35.8648951,170.95,170.91,0.69]
[1754391689277,26.0,170.93,170.91,0.69]
[1754391689481,5.84916751,170.97,170.91,6.54094749]
[1754391689689,26.0,170.93,170.92,0.69]
[1754391690253,9.8648951,170.96,170.92,0.69]
[1754391690659,5.84692743,171.03,170.94,9.8648951]
[1754391690868,41.58,171.02,170.95,10.5548951]
[1754391691064,41.58,171.02,170.96,10.5548951]
[1754391691259,26.0,170.98,170.97,0.69]
[1754391691459,4.58103364,171.02,170.97,0.69]
[1754391691460,10.42864352,171.02,170.97,0.69]
[1754391691662,9.8648951,171.01,170.98,0.69]
[1754391692168,9.8648951,171.01,170.99,0.69]
[1754391692891,26.0,171.01,171.0,0.69]
[1754391693061,35.8648951,171.01,171.0,0.69]
[1754391693867,35.8648951,171.01,170.96,15.71412385]
[1754391694078,9.8648951,171.0,170.97,0.69]
[1754391694275,9.8648951,171.0,170.96,5.84922875]
[1754391694472,9.8648951,171.0,170.98,0.69]
[1754391694885,9.8648951,170.99,170.96,0.69]
[1754391695065,9.8648951,170.97,170.96,0.69]
[1754391695268,9.8648951,170.97,170.93,0.69]
[1754391695477,9.8648951,170.96,170.93,0.69]
[1754391695682,9.8648951,170.95,170.93,0.69]
[1754391696392,9.8648951,170.95,170.94,0.69]
[1754391699068,9.8648951,170.96,170.94,0.69]
[1754391699567,26.0,170.97,170.95,0.69]
[1754391699764,35.8648951,170.99,170.95,0.69]
[1754391700267,0.03,170.96,170.94,9.8648951]
[1754391700467,0.03,170.96,170.92,5.85054197]
[1754391700674,0.03,170.96,170.92,14.62672595]
[1754391700881,0.03,170.96,170.93,0.69]
[1754391701285,0.03,170.96,170.95,9.8648951]
[1754391701772,0.03,170.96,170.95,10.5548951]
[1754391702888,0.03,170.96,170.95,16.40455874]
[1754391704295,0.03,170.96,170.95,6.53966364]
[1754391704497,0.03,170.96,170.95,16.40455874]
[1754391707691,0.03,170.96,170.92,29.73294152]
[1754391707888,0.03,170.96,170.93,6.54034809]
[1754391708295,0.03,170.96,170.94,0.69]
[1754391708806,0.03,170.96,170.93,5.85034809]
[1754391708975,0.03,170.96,170.95,0.69]
[1754391709376,0.03,170.96,170.95,6.53966364]
[1754391710206,0.03,170.96,170.92,41.46]
[1754391710207,35.8948951,170.96,170.91,10.5548951]
[1754391710507,35.8948951,170.96,170.92,0.69]
[1754391710994,0.03,170.96,170.93,0.69]
[1754391711198,9.8648951,170.95,170.9,6.74126831]
[1754391711372,9.8648951,170.94,170.9,6.74126831]
[1754391711778,9.8648951,170.95,170.9,6.05126831]
[1754391711983,9.8648951,170.95,170.91,0.69]
[1754391712687,9.8648951,170.95,170.91,6.54102005]
[1754391712986,9.8648951,170.95,170.92,0.69]
[1754391713479,0.03,170.96,170.91,5.85102005]
[1754391713480,0.03,170.96,170.93,10.5548951]
[1754391713682,0.03,170.96,170.93,0.69]
[1754391713900,0.03,170.96,170.92,9.8648951]
[1754391714069,10.4948951,170.96,170.91,16.40591515]
[1754391714398,9.8648951,170.94,170.9,6.05131202]
[1754391714606,9.8648951,170.95,170.9,15.91620712]
[1754391714993,0.6,170.94,170.9,15.91620712]
[1754391715184,0.6,170.94,170.9,6.05131202]
[1754391715518,9.8648951,170.94,170.9,6.05131202]
[1754391715678,9.8948951,170.96,170.91,0.69]
[1754391715875,0.03,170.96,170.92,10.5548951]
[1754391716088,0.03,170.96,170.93,0.69]
[1754391717301,0.03,170.96,170.92,9.8648951]
[1754391717702,0.03,170.96,170.93,6.54034809]
[1754391720181,0.03,170.96,170.94,0.67]
[1754391720400,0.03,170.96,170.95,9.8648951]
[1754391720903,0.03,170.96,170.95,10.5348951]
[1754391721809,0.03,170.96,170.95,16.44455874]
[1754391722405,0.03,170.96,170.95,31.55077431]
[1754391722787,0.03,170.98,170.96,15.10621557]
[1754391722976,0.03,170.98,170.97,9.8648951]
[1754391723179,0.03,170.98,170.97,10.5348951]
[1754391723702,0.03,170.98,170.97,16.38387445]
[1754391726084,0.03,170.98,170.96,5.84919573]
[1754391726286,0.03,170.98,170.97,41.4]
[1754391727208,0.03,170.98,170.97,47.24897935]
[1754391727604,0.03,170.98,170.97,41.4]
[1754391728692,0.03,170.98,170.96,47.2292491]
[1754391728892,0.03,170.98,170.96,47.8992491]
[1754391729207,0.03,170.98,170.96,57.75928414]
[1754391729408,0.03,170.98,170.96,47.8992491]
[1754391729605,10.49003504,170.98,170.95,0.06]
[1754391729808,9.86003504,170.96,170.95,0.06]
[1754391729994,10.46003504,170.97,170.95,0.06]
[1754391732011,9.89003504,170.98,170.95,0.06]
[1754391732201,0.03,170.98,170.96,0.67]
[1754391732713,0.03,170.98,170.97,0.67]
[1754391733105,0.03,170.98,170.97,10.53003504]
[1754391733703,0.03,170.98,170.97,16.37901439]
[1754391734096,0.03,170.98,170.97,6.51897935]
[1754391734396,0.03,170.98,170.96,5.84920765]
[1754391736220,0.03,170.98,170.97,0.67]
[1754391737704,0.03,170.98,170.97,5.84897935]
[1754391738037,10.49003504,170.98,170.95,47.3095907]
[1754391738413,0.63,170.98,170.95,47.3095907]
[1754391738724,0.03,170.98,170.96,0.67]
[1754391739106,0.03,170.98,170.95,144.66962574]
[1754391739530,9.89003504,170.98,170.95,87.56]
[1754391739730,10.46003504,170.97,170.95,87.56]
[1754391740029,10.46003504,170.97,170.95,0.06]
[1754391740030,9.86003504,170.96,170.95,0.06]
[1754391741534,0.03,170.98,170.95,0.73]
[1754391741834,0.03,170.98,170.96,0.67]
[1754391742717,0.03,170.98,170.96,6.51926531]
[1754391743706,0.03,170.98,170.97,0.67]
[1754391744916,0.03,170.98,170.97,6.51897935]
[1754391746752,0.03,170.98,170.97,16.37901439]
[1754391747063,0.03,170.98,170.97,6.51897935]
[1754391750333,0.03,170.98,170.96,5.84918561]
[1754391750531,0.03,170.98,170.96,0.69]
[1754391750716,0.03,170.98,170.96,6.53913746]
[1754391751729,0.03,170.98,170.96,5.84913746]
[1754391751915,0.03,170.98,170.97,0.69]
[1754391752419,0.03,170.98,170.97,41.34]
[1754391754512,0.03,170.98,170.95,87.56]
[1754391754812,6.79327698,170.98,170.95,128.9]
[1754391756239,10.73254516,170.98,170.95,128.9]
[1754391756814,10.73254516,170.98,170.95,41.4]
[1754391757330,6.19327698,170.98,170.95,47.24966315]
[1754391757538,0.03,170.98,170.95,47.93966315]
[1754391758624,0.03,170.98,170.95,42.09]
[1754391758825,0.03,170.98,170.95,47.93961208]
[1754391759641,0.03,170.98,170.96,0.69]
[1754391759834,6.16327698,170.97,170.95,0.06]
[1754391760017,6.16327698,170.96,170.95,0.06]
[1754391760334,6.76327698,170.96,170.95,0.06]
[1754391760519,32.76327698,170.96,170.95,0.06]
[1754391760721,42.55321519,170.96,170.95,0.06]
[1754391761322,16.69537676,170.96,170.95,0.06]
[1754391761516,42.69537676,170.96,170.95,0.06]
[1754391761928,16.69537676,170.96,170.95,0.06]
[1754391763738,3.94061674,170.96,170.95,0.75]
[1754391763930,0.03,170.98,170.95,6.91327698]
[1754391764131,0.03,170.98,170.96,0.69]
[1754391764440,0.03,170.98,170.97,6.16327698]
[1754391764933,0.03,170.98,170.97,12.70225633]
[1754391766337,0.03,171.0,170.98,15.10621557]
[1754391766554,0.03,171.0,170.99,41.36]
[1754391766925,9.8890987,171.0,170.99,41.36]
[1754391767253,9.8890987,171.0,170.96,48.11919341]
[1754391767452,9.8890987,171.0,170.97,0.69]
[1754391767630,0.03,171.0,170.97,41.58]
[1754391767954,0.03,171.0,170.98,0.69]
[1754391768618,0.03,171.0,170.96,41.58]
[1754391768619,9.8590987,170.99,170.96,41.58]
[1754391769132,9.8590987,170.99,170.96,42.27]
[1754391769328,9.8590987,170.98,170.96,42.27]
[1754391769528,9.8590987,170.98,170.96,41.58]
[1754391769848,10.4590987,170.97,170.95,0.06]
[1754391770145,9.8590987,170.96,170.95,0.06]
[1754391771038,13.79844777,170.96,170.95,0.06]
[1754391771432,19.64776924,170.96,170.95,0.06]
[1754391772943,20.24776924,170.96,170.95,0.06]
[1754391773531,19.64776924,170.96,170.95,0.06]
[1754391773934,13.79844777,170.96,170.95,0.06]
[1754391774419,26.0,170.98,170.95,0.75]
[1754391774626,26.0,170.98,170.95,10.6090987]
[1754391774820,26.0,170.98,170.96,0.69]
[1754391775224,26.0,170.98,170.95,9.9190987]
[1754391775425,26.0,170.98,170.97,0.69]
[1754391776940,0.03,171.0,170.97,0.69]
[1754391777141,29.9678283,171.0,170.97,0.69]
[1754391777351,3.9378283,170.99,170.97,0.69]
[1754391778650,3.9378283,170.99,170.95,0.06]
[1754391778948,26.0,170.99,170.98,0.71]
[1754391779446,29.93809458,170.99,170.98,0.71]
[1754391780138,29.93809458,170.99,170.95,5.90957845]
[1754391780345,26.0,170.99,170.96,0.71]
[1754391780539,35.8590987,170.99,170.96,0.71]
[1754391780850,9.8590987,170.97,170.95,0.06]
[1754391781144,39.79795241,170.96,170.95,0.06]
[1754391781448,40.39795241,170.96,170.95,0.06]
[1754391781635,40.54011398,170.96,170.95,0.06]
[1754391781835,46.38943545,170.96,170.95,0.06]
[1754391782264,39.79795241,170.96,170.95,0.06]
[1754391782953,45.64727388,170.96,170.95,0.06]
[1754391783150,46.24727388,170.96,170.95,0.06]
[1754391784156,45.64727388,170.96,170.95,0.06]
[1754391785134,46.24727388,170.96,170.95,0.06]
[1754391785537,45.64727388,170.96,170.95,0.06]
[1754391785845,26.0,170.96,170.95,0.77]
[1754391786358,35.8590987,170.96,170.95,0.06]
[1754391786564,26.0,170.96,170.95,0.77]
[1754391787431,26.0,170.96,170.95,0.06]
[1754391787627,35.8590987,170.96,170.95,0.06]
[1754391788230,41.70842017,170.96,170.95,0.06]
[1754391788436,46.24381602,170.96,170.95,0.06]
[1754391788833,39.79449455,170.96,170.95,0.06]
[1754391789030,35.8590987,170.96,170.95,0.06]
[1754391789263,83.82842017,170.96,170.95,0.06]
[1754391789467,87.76365941,170.96,170.95,0.06]
[1754391789758,26.0,170.96,170.95,0.06]
[1754391789953,26.0,170.96,170.95,0.77]
[1754391791060,26.0,170.96,170.95,0.06]
[1754391791769,0.03,170.98,170.95,6.61952931]
[1754391791975,26.03,170.98,170.96,0.71]
[1754391792151,26.03,170.98,170.97,0.71]
[1754391792351,26.03,170.98,170.95,6.61952931]
[1754391792555,32.19563071,170.98,170.95,0.77]
[1754391793356,26.0,170.97,170.96,0.71]
[1754391793565,26.0,170.97,170.95,12.07520676]
[1754391793960,26.0,170.97,170.95,5.90957605]
[1754391794166,26.0,170.97,170.95,0.77]
[1754391794354,26.0,170.97,170.95,0.06]
[1754391794549,26.0,170.97,170.96,0.71]
[1754391795472,0.03,170.98,170.96,0.71]
[1754391795676,26.03,170.98,170.97,0.71]
[1754391796178,26.03,170.98,170.95,5.90955746]
[1754391796381,26.03,170.98,170.96,0.71]
[1754391797076,0.03,170.98,170.97,6.87563071]
[1754391798169,0.03,170.98,170.97,12.72461006]
[1754391801801,0.03,170.98,170.97,27.83082563]
[1754391803485,0.03,170.98,170.97,45.39265863]
[1754391804074,0.03,170.98,170.97,132.89265863]
[1754391804481,0.03,170.98,170.97,111.62081235]
[1754391804677,0.03,170.98,170.97,94.05897935]
[1754391804990,0.03,170.98,170.97,135.49897935]
[1754391805685,0.03,170.98,170.97,128.94]
[1754391806508,32.19563071,170.98,170.97,87.5]
[1754391806680,32.79563071,170.98,170.95,0.06]
[1754391806863,6.16563071,170.96,170.95,0.06]
[1754391807394,26.03,170.98,170.95,6.93563071]
[1754391807695,0.03,170.98,170.96,42.15]
[1754391807871,0.03,170.98,170.97,0.71]
[1754391808074,0.03,170.98,170.97,6.87563071]
[1754391809689,0.03,170.98,170.97,6.55897935]
[1754391809885,0.03,170.98,170.97,12.72461006]
[1754391811572,0.03,170.98,170.96,53.45492741]
[1754391811782,0.03,170.98,170.96,54.15492741]
[1754391812669,0.03,170.98,170.97,0.7]
[1754391812973,0.03,170.98,170.97,6.86563071]
[1754391813795,0.03,170.98,170.97,12.71461006]
[1754391814175,0.03,170.98,170.96,140.95484568]
[1754391814498,0.03,170.98,170.96,134.78921497]
[1754391815084,0.03,170.98,170.96,141.65484568]
[1754391815279,0.03,170.98,170.96,140.95484568]
[1754391815467,0.03,170.98,170.97,0.7]
[1754391815968,0.03,170.98,170.97,6.86563071]
[1754391817203,0.03,170.98,170.97,0.7]
[1754391817372,0.03,170.98,170.97,6.54897935]
[1754391817572,0.03,170.98,170.97,12.71461006]
[1754391817774,0.03,170.98,170.97,6.54897935]
[1754391817998,0.03,170.98,170.97,12.71461006]
[1754391818888,0.03,170.98,170.97,100.21461006]
[1754391819807,0.03,170.98,170.97,94.04897935]
[1754391819983,0.03,170.98,170.97,100.21461006]
[1754391820305,0.03,170.98,170.97,93.34897935]
[1754391820799,0.03,170.98,170.97,100.21461006]
[1754391822381,0.03,170.98,170.97,115.32082563]
[1754391824481,0.03,170.98,170.97,109.15519492]
[1754391824682,0.03,170.98,170.97,115.32082563]
[1754391825004,0.03,170.98,170.97,125.41829063]
[1754391825310,0.03,170.98,170.97,119.25265992]
[1754391825504,0.03,170.98,170.97,125.41829063]
[1754391825912,0.03,170.98,170.97,119.25265992]
[1754391826109,0.03,170.98,170.97,125.41829063]
[1754391826486,0.03,170.98,170.97,119.25265992]
[1754391826700,0.03,170.98,170.97,125.41829063]
[1754391827208,0.03,170.98,170.97,103.44644435]
[1754391827401,0.03,170.98,170.97,93.34897935]
[1754391827589,0.03,170.98,170.97,134.70897935]
[1754391827793,0.63,170.98,170.97,128.86]
[1754391828188,0.03,170.98,170.97,134.70897935]
[1754391828388,0.03,170.98,170.97,128.86]
[1754391829085,0.03,170.98,170.97,41.36]
[1754391829884,0.03,170.98,170.97,42.06]
[1754391830283,0.03,170.98,170.96,93.34919964]
[1754391830504,0.03,170.98,170.97,41.36]
[1754391831008,0.03,170.98,170.97,47.20897935]
[1754391831189,0.03,170.98,170.97,41.36]
[1754391831507,0.03,170.98,170.97,47.90897935]
[1754391832688,0.63,170.98,170.97,41.36]
[1754391832894,0.03,170.98,170.97,41.36]
[1754391833490,0.63,170.98,170.97,41.36]
[1754391834212,0.03,170.98,170.97,41.36]
[1754391835393,0.03,170.98,170.96,93.34928357]
[1754391835621,0.03,170.98,170.97,41.36]
[1754391836392,0.03,170.98,170.97,42.06]
[1754391836592,0.03,170.98,170.97,41.36]
[1754391837718,0.03,170.98,170.96,93.34928357]
[1754391837921,0.03,170.98,170.97,41.36]
[1754391838212,26.6,170.97,170.95,0.06]
[1754391838416,10.70523182,170.96,170.95,0.06]
[1754391839084,16.55455329,170.96,170.95,0.06]
[1754391840791,31.80293043,170.96,170.95,0.06]
[1754391840993,26.0,170.92,170.9,0.2]
[1754391841199,36.44749886,170.91,170.9,0.2]
[1754391841399,36.94749886,170.91,170.9,0.1]
[1754391841711,26.0,170.89,170.88,0.06]
[1754391841915,45.18797825,170.89,170.88,0.06]
[1754391842215,15.10621557,170.88,170.82,0.2]
[1754391842526,0.14216157,170.87,170.82,0.2]
[1754391842714,67.23360896,170.87,170.82,0.2]
[1754391843201,73.08601137,170.87,170.82,0.2]
[1754391843810,76.08179319,170.87,170.82,0.2]
[1754391844217,73.08601137,170.87,170.82,0.2]
[1754391845719,53.49803312,170.87,170.83,0.65]
[1754391846021,73.06267557,170.87,170.82,0.2]
[1754391846504,69.14641026,170.87,170.82,0.2]
[1754391846706,26.0,170.84,170.82,0.2]
[1754391847020,47.84563071,170.83,170.82,0.2]
[1754391847220,48.24563071,170.83,170.82,0.2]
[1754391847412,54.09940346,170.83,170.82,0.2]
[1754391847596,53.69940346,170.83,170.82,0.2]
[1754391848003,32.16563071,170.84,170.82,0.85]
[1754391848300,32.16563071,170.83,170.82,0.85]
[1754391848501,36.89566233,170.83,170.82,0.2]
[1754391848708,26.0,170.83,170.82,0.2]
[1754391848901,6.56563071,170.83,170.82,0.2]
[1754391849311,12.41940346,170.83,170.82,0.2]
[1754391849830,32.30232444,170.83,170.82,0.2]
[1754391849996,15.24837714,170.82,170.81,0.2]
[1754391850196,15.64837714,170.82,170.81,0.2]
[1754391850424,15.64837714,170.82,170.81,0.85]
[1754391850425,6.16563071,170.82,170.81,0.85]
[1754391850639,32.16563071,170.82,170.81,0.85]
[1754391851004,26.0,170.82,170.81,0.85]
[1754391852520,26.0,170.82,170.81,0.2]
[1754391852718,26.0,170.82,170.81,0.85]
[1754391853808,35.88049752,170.82,170.81,0.2]
[1754391854624,15.73461296,170.82,170.81,0.2]
[1754391854830,9.88049752,170.82,170.81,0.2]
[1754391855207,15.73461296,170.82,170.81,0.2]
[1754391855813,9.88049752,170.82,170.81,0.2]
[1754391856017,55.06650501,170.83,170.81,0.85]
[1754391856018,64.94700253,170.83,170.81,0.85]
[1754391856216,39.32650501,170.83,170.81,0.85]
[1754391856503,49.20700253,170.83,170.81,0.2]
[1754391856708,49.20700253,170.83,170.81,0.85]
[1754391857010,49.20700253,170.83,170.81,0.2]
[1754391857011,9.88049752,170.82,170.81,0.2]
[1754391857516,15.73461296,170.82,170.81,0.2]
[1754391857725,9.88049752,170.82,170.81,0.2]
[1754391857912,13.32650501,170.83,170.81,0.85]
[1754391858112,13.32650501,170.83,170.82,9.88049752]
[1754391858317,13.32650501,170.83,170.82,10.53049752]
[1754391858519,13.32650501,170.83,170.82,0.65]
[1754391862601,13.32650501,170.83,170.81,0.2]
[1754391862800,13.32650501,170.83,170.81,0.85]
[1754391863733,9.88049752,170.82,170.81,0.2]
[1754391864112,23.20700253,170.83,170.81,0.2]
[1754391864316,9.88049752,170.82,170.81,0.2]
[1754391865132,13.32650501,170.83,170.81,0.85]
[1754391865332,13.32650501,170.83,170.81,0.2]
[1754391867035,13.32650501,170.83,170.81,0.85]
[1754391867221,13.32650501,170.83,170.81,0.2]
[1754391867829,13.32650501,170.83,170.82,0.65]
[1754391868017,13.32650501,170.83,170.81,6.05445464]
[1754391868221,13.32650501,170.83,170.81,6.70445464]
[1754391868626,13.32650501,170.83,170.82,0.65]
[1754391869141,12.60650501,170.83,170.82,10.53049752]
[1754391869540,12.60650501,170.83,170.82,16.38461296]
[1754391869849,0.7,170.95,170.84,0.14216157]
[1754391870137,51.62049752,170.94,170.89,9.88049752]
[1754391870350,42.44,170.94,170.88,10.60049752]
[1754391870672,35.88049752,170.93,170.88,10.60049752]
[1754391871032,9.88049752,170.93,170.89,6.57171747]
[1754391871420,35.88049752,170.93,170.89,6.57171747]
[1754391871619,9.88049752,170.93,170.89,6.57171747]
[1754391872238,35.88049752,170.93,170.89,6.57171747]
[1754391872959,42.44,170.94,170.85,56.37236322]
[1754391872960,10.28587012,170.96,170.92,15.73102641]
[1754391873177,10.28587012,170.96,170.93,10.60049752]
[1754391873328,10.28587012,170.96,170.94,9.88049752]
[1754391873527,10.28587012,170.96,170.95,0.72]
[1754391873719,10.28587012,170.96,170.95,10.60049752]
[1754391875044,10.28587012,170.96,170.95,16.45016116]
[1754391875928,0.03,170.98,170.95,16.45016116]
[1754391876134,0.03,170.98,170.97,9.88049752]
[1754391876526,0.03,170.98,170.97,10.60049752]
[1754391877348,0.03,170.98,170.97,16.44947687]
[1754391879348,0.03,171.0,170.98,15.24837714]
[1754391879655,1e-08,171.01,171.0,15.24837714]
[1754391879847,10.49392636,171.1,171.0,15.24837714]
[1754391879848,26.0,171.09,171.0,25.12887466]
[1754391880046,26.0,171.09,171.05,9.88049752]
[1754391880230,26.0,171.09,171.05,10.60049752]
[1754391880734,20.37442388,171.1,171.05,10.60049752]
[1754391880940,26.0,171.09,171.05,10.60049752]
[1754391881446,0.7,171.08,171.04,41.76]
[1754391881631,9.88049752,171.06,171.01,41.76]
[1754391881833,0.7,171.07,171.01,41.76]
[1754391881834,0.7,171.05,171.01,47.60761125]
[1754391882137,9.88049752,171.05,171.01,47.60761125]
[1754391882540,9.88049752,171.05,171.01,48.32761125]
[1754391883540,26.0,171.07,171.03,9.88049752]
[1754391883739,10.49392636,171.1,171.06,9.88049752]
[1754391883944,10.49392636,171.1,171.07,0.72]
[1754391884250,36.49392636,171.1,171.07,0.72]
[1754391884656,46.37442388,171.1,171.05,52.34049752]
[1754391884855,46.37442388,171.1,171.06,5.84590202]
[1754391885026,46.37442388,171.1,171.06,6.56590202]
[1754391885228,47.07442388,171.1,171.06,6.56590202]
[1754391885628,47.07442388,171.1,171.06,5.84590202]
[1754391886650,36.49392636,171.1,171.06,16.44639954]
[1754391886843,36.49392636,171.1,171.07,0.72]
[1754391887050,10.49392636,171.1,171.08,0.72]
[1754391887246,10.49392636,171.1,171.09,52.32049752]
[1754391887569,0.03,171.12,171.09,52.32049752]
[1754391887947,0.03,171.12,171.1,10.60049752]
[1754391888669,0.03,171.12,171.1,0.72]
[1754391888866,9.91049752,171.12,171.06,0.72]
[1754391889054,9.88049752,171.1,171.06,47.56590202]
[1754391889253,26.7,171.11,171.02,9.88049752]
[1754391889254,0.7,171.09,171.02,9.88049752]
[1754391889571,9.88049752,171.07,171.03,41.76]
[1754391890156,9.88049752,171.07,171.03,42.48]
[1754391890359,10.58049752,171.07,171.03,48.32672372]
[1754391890853,10.58049752,171.07,171.03,47.60672372]
[1754391891168,9.88049752,171.06,171.03,47.60672372]
[1754391891368,10.58049752,171.05,170.99,0.72]
[1754391891667,9.88049752,171.04,171.0,41.76]
[1754391892053,9.88049752,171.04,171.01,0.72]
[1754391892573,9.88049752,171.04,171.01,6.56739509]
[1754391892749,9.88049752,171.03,171.01,5.84739509]
[1754391892953,26.7,171.05,171.01,5.84739509]
[1754391893458,9.88049752,171.03,171.01,5.84739509]
[1754391893981,35.88049752,171.04,171.01,6.56739509]
[1754391894550,35.88049752,171.04,171.0,41.76]
[1754391894551,35.88049752,171.04,171.0,47.60783302]
[1754391894751,35.88049752,171.04,171.0,48.32783302]
[1754391895247,9.88049752,171.03,171.0,48.32783302]
[1754391895667,9.88049752,171.03,171.0,48.28783302]
[1754391896064,9.88049752,171.03,171.0,6.56783302]
[1754391896269,9.88049752,171.03,171.0,48.28783302]
[1754391896870,0.7,171.06,171.01,0.72]
[1754391897173,9.88049752,171.04,171.0,47.56783302]
[1754391897356,9.88049752,171.04,171.0,48.28783302]
[1754391897943,0.51,171.03,171.0,47.56783302]
[1754391898149,9.88049752,171.04,171.0,48.28783302]
[1754391898351,9.88049752,171.04,171.01,0.06]
[1754391899171,9.88049752,171.02,171.01,0.06]
[1754391899860,9.88049752,171.04,171.01,0.76]
[1754391900375,26.0,171.05,171.02,42.38]
[1754391900564,26.0,171.04,171.03,0.7]
[1754391900777,35.88049752,171.04,171.02,87.5]
[1754391900977,10.39049752,171.03,171.02,87.5]
[1754391901279,16.23762362,171.03,171.01,0.06]
[1754391901481,10.39049752,171.02,171.01,0.06]
[1754391901860,36.39049752,171.02,171.01,0.06]
[1754391902581,26.0,171.0,170.99,0.06]
[1754391902784,26.0,170.98,170.9,5.85107209]
[1754391902971,35.88049752,170.91,170.84,0.7]
[1754391903170,9.88049752,170.86,170.84,6.55343011]
[1754391903483,0.71,170.9,170.84,6.55343011]
[1754391903484,9.88049752,170.87,170.84,6.55343011]
[1754391903675,9.88049752,170.87,170.84,48.25343011]